bitfinex-derivatives/quotes_SOLF0:USTF0_20220106
["timestamp","ask_amount","ask_price","bid_price","bid_amount"]
[1641437895201,3.41578586,151.03,150.99,1.26435488]
[1641437895901,3.41578586,151.03,150.98,21.79143435]
[1641437896502,6.61703888,151.07,151.0,4.0]
[1641437896703,6.61703888,151.07,150.98,21.79143435]
[1641437896704,64.53734361,151.08,151.02,4.0]
[1641437896903,27.66479,151.08,151.01,4.0]
[1641437897202,27.66479,151.08,151.0,4.0]
[1641437897403,36.87255361,151.09,151.03,4.0]
[1641437897803,16.67397533,151.14,151.03,4.0]
[1641437897804,36.87255361,151.11,151.03,4.0]
[1641437898007,36.87255361,151.11,151.05,4.0]
[1641437898207,36.87255361,151.11,151.04,4.0]
[1641437898407,36.87255361,151.11,151.0,14.03527556]
[1641437898607,36.87255361,151.11,151.04,4.0]
[1641437898807,43.48652894,151.14,151.05,27.66479]
[1641437899809,55.70870658,151.14,151.05,27.66479]
[1641437900209,59.70870658,151.14,151.05,27.66479]
[1641437900411,4.0,151.12,151.04,65.6618]
[1641437900612,4.0,151.13,151.04,65.6618]
[1641437900812,31.66479,151.12,151.04,65.6618]
[1641437901011,4.0,151.11,151.04,65.6618]
[1641437901411,36.87255361,151.1,151.04,65.6618]
[1641437901612,43.17355361,151.1,151.04,65.6618]
[1641437901814,47.17355361,151.1,151.02,27.66479]
[1641437902815,4.0,151.08,151.02,27.66479]
[1641437903016,4.0,151.07,151.0,14.03527556]
[1641437903316,4.0,151.07,150.99,14.03527556]
[1641437903715,4.0,151.05,150.99,14.03527556]
[1641437903915,9.234,151.05,150.99,14.03527556]
[1641437904215,9.234,151.05,150.96,14.03527556]
[1641437904815,36.89879,151.05,150.96,14.03527556]
[1641437905617,73.77134361,151.05,150.95,14.03527556]
[1641437906219,69.77134361,151.05,150.95,14.03527556]
[1641437906518,4.0,151.03,150.95,14.03527556]
[1641437906717,4.0,151.03,150.95,20.52764606]
[1641437907219,4.0,151.0,150.95,20.52764606]
[1641437907418,10.261,151.0,150.95,20.52764606]
[1641437907718,6.261,151.0,150.94,41.70006556]
[1641437908519,6.261,151.0,150.94,27.66479]
[1641437908720,10.261,151.0,150.94,27.66479]
[1641437909020,4.0,150.99,150.94,27.66479]
[1641437909219,4.0,150.98,150.94,27.66479]
[1641437909419,4.0,150.97,150.93,14.03527556]
[1641437909621,4.0,150.96,150.93,14.03527556]
[1641437909819,4.0,150.95,150.93,14.03527556]
[1641437910319,4.0,150.94,150.93,14.03527556]
[1641437910920,31.66479,150.94,150.88,14.03527556]
[1641437911320,4.0,150.93,150.88,14.03527556]
[1641437911522,6.62514907,150.89,150.85,17.30925769]
[1641437911721,16.36714907,150.89,150.85,17.30925769]
[1641437912124,4.0,150.87,150.86,2.21267166]
[1641437912322,6.62690524,150.86,150.79,28.62190424]
[1641437912522,4.0,150.85,150.79,22.96190424]
[1641437912724,4.0,150.85,150.79,15.96190424]
[1641437912725,4.0,150.84,150.79,15.96190424]
[1641437912923,27.66479,150.82,150.79,15.96190424]
[1641437914024,31.66479,150.82,150.79,15.96190424]
[1641437914425,4.68644307,150.81,150.8,4.68644307]
[1641437914627,9.64744307,150.81,150.8,4.68644307]
[1641437914926,9.64744307,150.81,150.8,0.68644307]
[1641437915728,4.961,150.81,150.8,0.68644307]
[1641437916731,31.66479,150.82,150.8,0.68644307]
[1641437916931,27.66479,150.82,150.75,0.08]
[1641437918431,31.66479,150.82,150.75,0.08]
[1641437918631,27.66479,150.82,150.75,0.08]
[1641437918832,31.66479,150.82,150.75,0.08]
[1641437919333,4.0,150.82,150.75,0.08]
[1641437921539,4.0,150.83,150.75,0.08]
[1641437921738,4.0,150.84,150.75,0.08]
[1641437921941,4.0,150.85,150.75,0.08]
[1641437922541,43.49945885,150.86,150.75,0.08]
[1641437922740,4.0,150.84,150.75,0.08]
[1641437922940,4.0,150.83,150.75,0.08]
[1641437927744,4.0,150.81,150.75,0.08]
[1641437928345,4.0,150.81,150.7,10.81695668]
[1641437928546,4.0,150.83,150.7,10.81695668]
[1641437929549,4.0,150.82,150.7,10.81695668]
[1641437929749,4.0,150.81,150.7,10.81695668]
[1641437929951,4.0,150.83,150.7,10.81695668]
[1641437931252,4.0,150.83,150.71,4.0]
[1641437931452,36.87255361,150.84,150.73,4.0]
[1641437932655,65.4822,150.85,150.7,21.19330608]
[1641437932855,65.4822,150.85,150.7,10.80830608]
[1641437933153,65.4822,150.85,150.7,14.80830608]
[1641437933454,69.4822,150.85,150.7,17.29100115]
[1641437933653,12.26531243,150.84,150.75,4.0]
[1641437934254,4.0,150.83,150.7,17.29100115]
[1641437934455,18.72031243,150.84,150.7,17.29100115]
[1641437934756,4.0,150.83,150.7,17.29100115]
[1641437934955,4.0,150.8,150.7,17.29100115]
[1641437935160,4.0,150.79,150.7,17.29100115]
[1641437935359,6.63042037,150.77,150.7,17.29100115]
[1641437935756,6.63042037,150.77,150.7,6.48269507]
[1641437935958,6.63042037,150.77,150.68,6.48269507]
[1641437936358,4.0,150.75,150.68,6.48269507]
[1641437936558,4.0,150.74,150.68,6.48269507]
[1641437937161,7.4310832,150.74,150.65,7.7414025]
[1641437937764,3.4310832,150.74,150.65,7.7414025]
[1641437938663,3.4310832,150.73,150.65,7.7414025]
[1641437939466,3.4310832,150.75,150.65,18.55191443]
[1641437940366,7.4310832,150.75,150.65,18.55191443]
[1641437940565,3.4310832,150.75,150.65,22.55191443]
[1641437940765,3.4310832,150.75,150.65,24.24091443]
[1641437940967,3.4310832,150.76,150.68,4.0]
[1641437941167,3.4310832,150.76,150.65,28.24091443]
[1641437941367,3.4310832,150.76,150.65,24.24091443]
[1641437941767,4.0,150.77,150.66,1.25870743]
[1641437942667,4.0,150.77,150.65,17.293207]
[1641437942668,3.4310832,150.76,150.68,14.06794152]
[1641437943470,13.45098077,150.78,150.7,14.06794152]
[1641437943471,3.4310832,150.77,150.7,14.06794152]
[1641437943670,4.0,150.76,150.7,14.06794152]
[1641437943871,3.4310832,150.77,150.7,14.06794152]
[1641437945474,7.4310832,150.77,150.7,14.06794152]
[1641437945874,7.4310832,150.77,150.69,14.06794152]
[1641437946075,14.2530832,150.77,150.69,14.06794152]
[1641437946775,3.4310832,150.76,150.69,14.06794152]
[1641437949180,7.4310832,150.76,150.69,14.06794152]
[1641437949379,12.0280832,150.76,150.69,14.06794152]
[1641437949781,8.0280832,150.76,150.69,14.06794152]
[1641437949980,4.0,150.74,150.69,14.06794152]
[1641437950182,4.0,150.73,150.69,14.06794152]
[1641437950381,4.0,150.71,150.69,14.06794152]
[1641437950583,4.0,150.7,150.65,7.7414025]
[1641437950783,4.0,150.69,150.67,14.06937401]
[1641437951682,4.535,150.71,150.67,14.06937401]
[1641437951885,4.535,150.71,150.65,7.7414025]
[1641437952283,3.4310832,150.68,150.62,7.7414025]
[1641437953586,3.4310832,150.71,150.62,7.7414025]
[1641437953783,3.4310832,150.71,150.62,14.4344025]
[1641437953983,3.4310832,150.71,150.65,4.0]
[1641437954184,3.4310832,150.71,150.63,4.0]
[1641437954585,6.63151961,150.74,150.64,4.0]
[1641437954884,68.1511,150.75,150.63,1.25870743]
[1641437955085,36.87255361,150.77,150.63,7.81070743]
[1641437955286,36.87255361,150.77,150.68,4.0]
[1641437955485,36.87255361,150.77,150.68,4.248]
[1641437955685,3.43197392,150.74,150.68,4.248]
[1641437956485,7.392e-05,150.74,150.68,4.248]
[1641437956686,43.50253438,150.78,150.68,4.248]
[1641437956886,6.62998077,150.78,150.68,4.248]
[1641437957086,6.62998077,150.78,150.64,4.0]
[1641437957287,6.62998077,150.78,150.63,6.552]
[1641437957487,6.62998077,150.78,150.65,4.0]
[1641437957887,6.62998077,150.78,150.66,67.3545]
[1641437958093,6.62998077,150.78,150.66,71.3545]
[1641437958688,6.62998077,150.78,150.66,67.3545]
[1641437958887,6.62998077,150.78,150.67,6.48269507]
[1641437959088,6.62998077,150.78,150.67,12.49969507]
[1641437959689,6.62998077,150.78,150.67,16.49969507]
[1641437959890,49.15094142,150.79,150.68,4.0]
[1641437960091,49.15094142,150.79,150.67,16.49969507]
[1641437960292,49.15094142,150.79,150.68,4.0]
[1641437960491,49.15094142,150.79,150.67,16.49969507]
[1641437960693,49.15094142,150.79,150.67,12.49969507]
[1641437961293,6.629761,150.78,150.67,12.49969507]
[1641437961493,6.629761,150.78,150.68,4.0]
[1641437961792,43.50231461,150.78,150.67,12.49969507]
[1641437961994,43.50231461,150.78,150.68,4.0]
[1641437962192,43.50231461,150.78,150.67,16.49969507]
[1641437962595,43.50231461,150.78,150.67,12.49969507]
[1641437962795,36.87255361,150.78,150.67,16.49969507]
[1641437963197,36.87255361,150.78,150.67,12.49969507]
[1641437963897,43.50231461,150.78,150.67,6.48269507]
[1641437964797,49.25631461,150.78,150.67,6.48269507]
[1641437966598,49.25631461,150.78,150.66,67.3545]
[1641437966799,36.87255361,150.76,150.66,67.3545]
[1641437968500,36.87255361,150.76,150.67,6.48141019]
[1641437968501,12.27838781,150.76,150.67,6.48141019]
[1641437970003,18.90924783,150.76,150.66,67.3545]
[1641437970202,23.41324783,150.76,150.66,67.3545]
[1641437970604,27.41324783,150.76,150.59,64.540872]
[1641437970805,27.41324783,150.76,150.6,62.7925]
[1641437971006,6.63239927,150.72,150.6,62.7925]
[1641437971205,12.39139927,150.72,150.6,62.7925]
[1641437972106,16.39139927,150.72,150.6,62.7925]
[1641437972305,4.0,150.71,150.61,6.48156695]
[1641437972505,16.39139927,150.72,150.61,6.48156695]
[1641437972706,4.0,150.71,150.61,6.48156695]
[1641437973006,16.39139927,150.72,150.61,6.48156695]
[1641437973306,4.0,150.71,150.61,6.48156695]
[1641437973707,47.50495288,150.72,150.61,6.48156695]
[1641437974008,6.63239927,150.72,150.6,62.7925]
[1641437974206,10.63305917,150.71,150.58,65.6076]
[1641437974408,6.63305917,150.71,150.55,67.0604]
[1641437975308,64.5576,150.7,150.55,71.0604]
[1641437975508,64.5576,150.7,150.56,4.0]
[1641437975709,64.5576,150.7,150.55,71.0604]
[1641437975910,4.66664792,150.67,150.6,4.66664792]
[1641437976212,4.66664792,150.67,150.6,11.21364792]
[1641437976811,4.66664792,150.68,150.6,11.21364792]
[1641437977512,4.66664792,150.67,150.6,11.21364792]
[1641437978613,4.66664792,150.67,150.6,6.547]
[1641437979915,4.66664792,150.68,150.6,11.21364792]
[1641437980414,4.66664792,150.67,150.6,11.21364792]
[1641437981419,64.5576,150.7,150.6,11.21364792]
[1641437981420,4.66664792,150.64,150.63,4.66664792]
[1641437983722,12.2879061,150.69,150.63,4.66664792]
[1641437983920,6.63481953,150.67,150.63,4.66664792]
[1641437985622,18.92162529,150.69,150.63,8.66664792]
[1641437985822,12.2879061,150.69,150.63,8.66664792]
[1641437986622,12.2879061,150.69,150.64,4.0]
[1641437986824,5.971e-05,150.7,150.65,4.0]
[1641437987022,5.971e-05,150.7,150.68,27.66479]
[1641437987223,5.971e-05,150.74,150.68,34.03179]
[1641437988324,6.63086002,150.76,150.7,4.66664792]
[1641437989323,6.63086002,150.76,150.68,34.03179]
[1641437989726,6.63086002,150.76,150.71,4.69039252]
[1641437990527,6.63086002,150.76,150.68,34.03179]
[1641437990726,6.63086002,150.76,150.7,4.69032331]
[1641437991627,6.63086002,150.76,150.68,27.66479]
[1641437992929,6.63086002,150.76,150.7,4.69046178]
[1641437993831,6.63086002,150.76,150.68,27.66479]
[1641437994232,27.66479,150.77,150.68,27.66479]
[1641437994431,27.66479,150.77,150.7,4.0]
[1641437994631,27.66479,150.77,150.68,27.66479]
[1641437995034,27.66479,150.77,150.71,27.66479]
[1641437995233,27.66479,150.77,150.71,33.14279]
[1641437995432,27.66479,150.77,150.72,4.68991842]
[1641437996233,27.66479,150.77,150.71,5.478]
[1641437996833,27.66479,150.77,150.69,14.07717019]
[1641437997037,27.66479,150.77,150.69,18.07717019]
[1641437997233,3.42887088,150.76,150.71,4.68995351]
[1641437998634,3.42887088,150.76,150.73,4.68968028]
[1641437999538,9.8,150.81,150.69,15.33830746]
[1641437999735,13.973,150.81,150.69,15.33830746]
[1641438000740,3.42872297,150.8,150.72,4.68983025]
[1641438001241,27.66479,150.78,150.72,4.68983025]
[1641438002439,27.66479,150.78,150.69,20.86617019]
[1641438002641,27.66479,150.78,150.69,6.789]
[1641438002940,27.66479,150.78,150.72,4.0]
[1641438003140,4.64494803,150.79,150.72,4.0]
[1641438003340,4.64494803,150.79,150.69,10.789]
[1641438003541,4.64494803,150.79,150.74,4.0]
[1641438003740,4.64494803,150.79,150.74,5.347]
[1641438003941,4.803e-05,150.79,150.75,4.0]
[1641438004141,4.803e-05,150.79,150.73,4.0]
[1641438004341,4.803e-05,150.79,150.74,4.0]
[1641438004542,27.66479,150.85,150.74,9.908]
[1641438004743,27.66479,150.85,150.74,5.908]
[1641438005042,3.42693264,150.83,150.76,1.26140567]
[1641438006244,8.94393264,150.83,150.74,14.07717019]
[1641438006544,4.0,150.82,150.74,14.07717019]
[1641438006944,4.0,150.82,150.73,1.26127643]
[1641438007144,27.66479,150.78,150.73,1.26127643]
[1641438007548,32.78879,150.78,150.73,1.26127643]
[1641438008148,15.69719575,150.77,150.7,1.26108409]
[1641438008951,15.69719575,150.77,150.68,41.74196019]
[1641438009249,53.21676537,150.77,150.69,1.26098551]
[1641438009750,57.21676537,150.77,150.69,1.26098551]
[1641438010350,4.0,150.75,150.69,1.26098551]
[1641438010549,4.0,150.74,150.69,1.26098551]
[1641438010749,4.0,150.71,150.63,15.33827563]
[1641438010950,4.0,150.7,150.63,15.33827563]
[1641438011252,27.66479,150.65,150.63,15.33827563]
[1641438011451,33.92379,150.65,150.63,15.33827563]
[1641438011853,68.0641,150.73,150.63,15.33827563]
[1641438012052,68.0641,150.73,150.63,21.37327563]
[1641438012252,68.0641,150.73,150.63,6.035]
[1641438012453,37.51956962,150.71,150.63,6.035]
[1641438013453,37.51956962,150.71,150.62,27.66479]
[1641438013653,37.51956962,150.71,150.64,1.26110544]
[1641438013854,15.70773647,150.72,150.64,7.22110544]
[1641438014655,15.70773647,150.72,150.65,1.26110544]
[1641438017458,15.70773647,150.72,150.65,5.26110544]
[1641438018361,15.70773647,150.72,150.66,4.0]
[1641438018561,15.70773647,150.72,150.66,10.814]
[1641438018860,40.95043304,150.76,150.66,12.07510544]
[1641438019061,40.95043304,150.76,150.66,8.07510544]
[1641438019360,68.61522304,150.76,150.66,8.07510544]
[1641438020363,31.09565342,150.76,150.67,1.26110544]
[1641438021263,3.43086342,150.75,150.67,1.26110544]
[1641438021462,15.70773647,150.75,150.67,1.26110544]
[1641438022467,15.70773647,150.75,150.66,1.26110544]
[1641438023270,19.70773647,150.75,150.66,1.26110544]
[1641438023474,15.70773647,150.75,150.66,1.26110544]
[1641438023872,19.70773647,150.75,150.66,1.26110544]
[1641438024071,4.0,150.73,150.66,1.26110544]
[1641438024272,6.63173951,150.74,150.66,1.26110544]
[1641438024273,4.0,150.72,150.66,1.26110544]
[1641438024471,4.0,150.73,150.66,1.26110544]
[1641438024671,4.0,150.72,150.66,1.26110544]
[1641438025272,31.09565342,150.71,150.65,1.26110544]
[1641438026673,15.70773647,150.7,150.62,1.26110544]
[1641438027575,19.70773647,150.7,150.62,1.26110544]
[1641438028376,3.43086342,150.69,150.62,1.26110544]
[1641438032879,15.70773647,150.7,150.62,1.26110544]
[1641438033080,15.70773647,150.7,150.62,11.98610544]
[1641438033379,15.70773647,150.7,150.65,27.66479]
[1641438033581,15.70773647,150.7,150.65,31.66479]
[1641438033779,3.43086342,150.7,150.65,27.66479]
[1641438034680,44.95043304,150.74,150.66,1.26110544]
[1641438034881,44.95043304,150.74,150.66,7.96810544]
[1641438035081,40.95043304,150.74,150.66,7.96810544]
[1641438035284,40.95043304,150.74,150.68,27.66479]
[1641438035683,3.43086342,150.73,150.68,27.66479]
[1641438035882,3.43086342,150.73,150.68,31.66479]
[1641438036084,3.43086342,150.73,150.68,27.66479]
[1641438036283,1.28353622,150.75,150.7,4.0]
[1641438036483,1.28353622,150.75,150.71,4.0]
[1641438037183,56.24507677,150.78,150.73,27.66479]
[1641438037383,12.26959681,150.77,150.73,27.66479]
[1641438038688,83.90986677,150.82,150.73,27.66479]
[1641438038884,27.66479,150.82,150.73,27.66479]
[1641438040084,27.66479,150.82,150.73,31.66479]
[1641438040285,6.62756404,150.83,150.73,31.66479]
[1641438041287,6.62756404,150.83,150.73,59.32958]
[1641438041487,6.62756404,150.83,150.75,4.0]
[1641438041686,6.62756404,150.83,150.75,10.01]
[1641438043588,6.62756404,150.83,150.75,6.01]
[1641438044588,27.66479,150.85,150.75,6.01]
[1641438045288,27.66479,150.85,150.77,27.66479]
[1641438046190,27.66479,150.85,150.73,27.66479]
[1641438046393,33.01679,150.85,150.73,27.66479]
[1641438046790,37.01679,150.85,150.73,27.66479]
[1641438046990,33.01679,150.85,150.73,27.66479]
[1641438047191,37.01679,150.85,150.73,27.66479]
[1641438047393,27.66479,150.82,150.73,27.66479]
[1641438047992,37.63179,150.82,150.72,63.9277]
[1641438048896,4.0,150.81,150.67,24.70429501]
[1641438049094,67.003,150.81,150.68,63.4452]
[1641438049295,67.003,150.81,150.7,4.0]
[1641438049494,83.90986677,150.82,150.71,4.0]
[1641438049695,56.24507677,150.81,150.71,4.0]
[1641438049896,56.24507677,150.81,150.68,97.93299]
[1641438050096,56.24507677,150.81,150.74,4.0]
[1641438050294,56.24507677,150.81,150.74,10.818]
[1641438051196,6.62712482,150.84,150.74,10.818]
[1641438051395,6.62712482,150.84,150.74,38.48279]
[1641438051597,6.62712482,150.84,150.74,34.48279]
[1641438051794,10.62712482,150.84,150.73,67.1021]
[1641438051996,27.66479,150.85,150.72,14.07717019]
[1641438052195,6.63086002,150.76,150.72,14.07717019]
[1641438052395,6.553,150.76,150.72,14.07717019]
[1641438052795,6.62756404,150.83,150.72,14.07717019]
[1641438052997,6.62756404,150.83,150.72,18.69617019]
[1641438053195,6.62756404,150.83,150.72,4.619]
[1641438053396,27.66479,150.82,150.72,4.619]
[1641438053596,27.66479,150.82,150.72,67.2035]
[1641438055198,44.96454177,150.82,150.72,67.2035]
[1641438056198,44.96454177,150.82,150.73,4.0]
[1641438056398,17.29975177,150.82,150.74,4.0]
[1641438056598,17.29975177,150.82,150.72,67.2035]
[1641438056800,56.24507677,150.83,150.72,67.2035]
[1641438056801,37.5130859,150.8,150.72,67.2035]
[1641438057599,37.5130859,150.8,150.72,71.2035]
[1641438057799,37.5130859,150.81,150.72,71.2035]
[1641438057999,37.5130859,150.81,150.73,4.0]
[1641438058199,37.5130859,150.81,150.76,4.0]
[1641438058400,37.5130859,150.81,150.76,10.464]
[1641438058600,37.5130859,150.81,150.76,6.464]
[1641438059403,37.5130859,150.81,150.75,27.66479]
[1641438059602,37.5130859,150.82,150.75,27.66479]
[1641438059802,37.5130859,150.82,150.75,31.66479]
[1641438060001,37.5130859,150.82,150.75,27.66479]
[1641438060402,37.5130859,150.81,150.75,27.66479]
[1641438061802,37.5130859,150.81,150.72,62.5845]
[1641438062005,37.5130859,150.8,150.72,62.5845]
[1641438062304,2.5005859,150.8,150.75,4.0]
[1641438062502,2.5005859,150.8,150.74,5.324]
[1641438062702,12.25481081,150.84,150.74,5.324]
[1641438063103,68.49988758,150.87,150.74,5.324]
[1641438063303,68.49988758,150.87,150.76,27.66479]
[1641438063903,68.49988758,150.87,150.77,68.2381]
[1641438064203,85.79963935,150.87,150.77,68.2381]
[1641438065006,85.79963935,150.87,150.77,74.1941]
[1641438065407,85.79963935,150.87,150.77,78.1941]
[1641438065807,29.55456258,150.87,150.77,78.1941]
[1641438066007,29.55456258,150.87,150.78,4.0]
[1641438066208,29.55456258,150.87,150.79,4.0]
[1641438066409,29.55456258,150.87,150.77,74.1941]
[1641438066810,4.68745227,150.79,150.78,4.68807169]
[1641438067411,29.55456258,150.87,150.78,4.68807169]
[1641438068011,27.66479,150.89,150.78,4.68807169]
[1641438068411,6.62558802,150.88,150.78,4.68807169]
[1641438069012,10.62558802,150.88,150.78,4.68807169]
[1641438069215,4.0,150.88,150.75,14.07717019]
[1641438069412,27.66479,150.84,150.73,41.74196019]
[1641438069613,33.14179,150.84,150.73,41.74196019]
[1641438070512,16.25481081,150.83,150.73,27.66479]
[1641438070712,6.62822297,150.82,150.69,18.07717019]
[1641438070915,10.62822297,150.82,150.69,18.07717019]
[1641438071112,10.62822297,150.82,150.69,14.07717019]
[1641438071312,6.63020056,150.77,150.69,14.07717019]
[1641438071514,11.18120056,150.77,150.69,14.07717019]
[1641438072312,4.551,150.77,150.69,14.07717019]
[1641438072517,27.66479,150.79,150.69,14.07717019]
[1641438072712,27.66479,150.79,150.69,26.3096227]
[1641438073313,6.63020056,150.77,150.69,26.3096227]
[1641438073715,6.63020056,150.77,150.69,5.725]
[1641438073915,6.63020056,150.77,150.68,66.2415]
[1641438075021,6.63020056,150.77,150.68,58.73844586]
[1641438075419,27.66479,150.76,150.68,58.73844586]
[1641438076421,15.67591465,150.75,150.68,58.73844586]
[1641438078223,15.67591465,150.75,150.65,41.73225261]
[1641438078623,15.67591465,150.75,150.66,1.26818891]
[1641438081231,4.0,150.73,150.66,1.26818891]
[1641438081431,27.66479,150.71,150.66,1.26818891]
[1641438081831,27.66479,150.71,150.65,1.26818891]
[1641438082232,4.0,150.7,150.65,1.26818891]
[1641438082431,27.66479,150.71,150.65,1.26818891]
[1641438082632,4.528,150.7,150.65,1.26818891]
[1641438082832,7.94910384,150.7,150.61,14.06746261]
[1641438083034,20.20391465,150.7,150.61,14.06746261]
[1641438084433,3.42110384,150.69,150.61,14.06746261]
[1641438086036,15.67591465,150.7,150.61,14.06746261]
[1641438086236,15.67591465,150.7,150.61,18.27546261]
[1641438086937,15.67591465,150.7,150.62,1.26818891]
[1641438087737,15.67591465,150.7,150.63,27.66479]
[1641438087938,15.67591465,150.71,150.63,27.66479]
[1641438088738,15.67591465,150.71,150.64,1.26818891]
[1641438095944,3.42110384,150.71,150.64,1.26818891]
[1641438096142,3.42110384,150.71,150.64,21.84371505]
[1641438097744,4.0,150.68,150.64,21.84371505]
[1641438097943,27.66479,150.67,150.64,21.84371505]
[1641438098143,3.42110384,150.71,150.64,15.33565152]
[1641438098343,3.42110384,150.71,150.64,7.21818891]
[1641438099444,15.66892614,150.74,150.65,1.26818891]
[1641438099644,15.66892614,150.74,150.65,63.29518891]
[1641438100045,15.66892614,150.74,150.69,27.66479]
[1641438100247,15.66892614,150.74,150.69,33.69679]
[1641438100645,37.52753945,150.75,150.69,33.69679]
[1641438100847,37.52753945,150.76,150.69,33.69679]
[1641438102248,53.19646559,150.77,150.69,27.66479]
[1641438103350,15.66892614,150.77,150.7,1.26850207]
[1641438106761,4.0,150.74,150.7,1.26850207]
[1641438106958,6.62,150.74,150.7,1.26850207]
[1641438107759,6.62,150.74,150.69,27.66479]
[1641438108058,3.42110384,150.73,150.69,27.66479]
[1641438109559,3.42110384,150.73,150.65,76.09446261]
[1641438109757,3.42110384,150.73,150.65,62.027]
[1641438110259,4.0,150.72,150.65,89.69179]
[1641438110460,4.0,150.72,150.64,14.06746261]
[1641438110759,4.0,150.71,150.66,1.26835735]
[1641438111564,3.42110384,150.7,150.61,1.26835735]
[1641438111963,9.65710384,150.7,150.61,1.26835735]
[1641438112164,37.32189384,150.7,150.61,28.93314735]
[1641438112563,33.90079,150.7,150.61,49.50876105]
[1641438113867,33.90079,150.7,150.61,43.00060996]
[1641438114066,4.0,150.68,150.62,1.26835735]
[1641438114267,15.66892614,150.69,150.62,1.26835735]
[1641438119579,3.42110384,150.69,150.62,1.26835735]
[1641438119775,3.42110384,150.69,150.62,21.84564003]
[1641438122179,3.42110384,150.69,150.62,15.33581996]
[1641438122679,3.42110384,150.69,150.62,1.26835735]
[1641438122881,7.42110384,150.69,150.62,1.26835735]
[1641438123079,3.42110384,150.69,150.62,1.26835735]
[1641438123281,4.0,150.64,150.62,1.26835735]
[1641438123480,4.402,150.64,150.61,14.06746261]
[1641438124378,10.63547991,150.65,150.61,14.06746261]
[1641438124781,10.63547991,150.65,150.57,41.73225261]
[1641438125982,6.63547991,150.65,150.57,41.73225261]
[1641438126181,37.52753945,150.66,150.61,4.0]
[1641438126381,37.52753945,150.66,150.61,5.181]
[1641438127186,12.25817252,150.69,150.61,5.181]
[1641438128085,4.69122767,150.63,150.61,32.84579]
[1641438129087,12.25817252,150.69,150.62,4.0]
[1641438129287,12.25817252,150.69,150.63,4.0]
[1641438129487,12.25817252,150.69,150.61,36.84579]
[1641438129686,12.25817252,150.69,150.61,32.84579]
[1641438129887,37.52753945,150.72,150.61,46.91325261]
[1641438130086,37.52753945,150.72,150.62,67.3032]
[1641438131087,41.52753945,150.72,150.62,67.3032]
[1641438131290,41.52753945,150.72,150.61,41.73225261]
[1641438131489,6.63283919,150.71,150.61,41.73225261]
[1641438131689,4.0,150.7,150.61,14.06746261]
[1641438131891,6.63283919,150.71,150.61,14.06746261]
[1641438132090,37.52753945,150.7,150.59,14.06746261]
[1641438132689,37.52753945,150.7,150.57,27.66479]
[1641438132690,37.52753945,150.69,150.58,20.57794723]
[1641438134491,42.38753945,150.69,150.58,20.57794723]
[1641438134690,42.38753945,150.69,150.6,4.0]
[1641438134890,42.38753945,150.69,150.58,20.57794723]
[1641438134891,42.38753945,150.69,150.59,8.975]
[1641438135091,42.38753945,150.69,150.59,4.975]
[1641438135591,12.25817252,150.7,150.6,14.06746261]
[1641438136094,12.25817252,150.7,150.6,41.73225261]
[1641438138393,4.0,150.67,150.6,14.06746261]
[1641438138593,5.026,150.67,150.6,14.06746261]
[1641438138794,5.026,150.67,150.59,14.06746261]
[1641438139796,37.52753945,150.68,150.57,41.73225261]
[1641438139994,37.52753945,150.68,150.57,47.81625261]
[1641438140196,65.19232945,150.68,150.57,47.81625261]
[1641438140596,65.19232945,150.68,150.59,14.06746261]
[1641438140796,27.66479,150.68,150.59,14.06746261]
[1641438141199,4.0,150.67,150.59,14.06746261]
[1641438141398,6.362,150.67,150.59,14.06746261]
[1641438141598,6.362,150.67,150.56,62.7014]
[1641438141797,123.20791197,150.67,150.56,76.77820969]
[1641438142998,49.78571197,150.66,150.56,62.7014]
[1641438145102,37.52753945,150.65,150.56,62.7014]
[1641438145506,53.49723952,150.65,150.55,14.07680969]
[1641438145703,4.0,150.63,150.55,14.07680969]
[1641438146104,6.63680106,150.62,150.55,14.07680969]
[1641438146304,31.66479,150.6,150.55,14.07680969]
[1641438146504,32.25279,150.6,150.55,14.07680969]
[1641438146905,32.25279,150.6,150.52,80.75030969]
[1641438148106,12.25817252,150.59,150.52,66.6735]
[1641438149109,27.66479,150.6,150.53,20.58761528]
[1641438150212,27.66479,150.6,150.53,14.07680969]